{"text_format":"3","workbook":"xlsx","n_sheets":2,"sheets":["CÓMO USAR ESTE LIBRO","LIBRO DE CALIFICACIONES"],"not_rendered":{"defined_names":5},"read":"whole","date_system":"1900"}

{"sheet":"CÓMO USAR ESTE LIBRO","index":0,"n_rows":10,"n_cols":2,"rows_kept":10}
[null,"INSTRUCCIONES"]
[null,"Usa la hoja de cálculo del LIBRO DE CALIFICACIONES para calcular calificaciones en las que cada tarea merece un número concreto de puntos. "]
[null,"Instrucciones: No olvides guardar copias de seguridad de tus calificaciones."]
[null,"1. Rellena el nombre del centro educativo, la información de la clase, los nombres de alumnos y el Id. de estudiante (opcional).   "]
[null,"2. Ajusta la tabla de nivel y calificación para que coincida con el sistema de puntuación típico que usas."]
[null,"3. Rellena los nombres de prueba o tarea comenzando por la celda G7, junto con el porcentaje que cada una merece (p. ej. \"Final\" y \"50 %\"). "]
[null,"4. Rellena las puntuaciones para cada alumno en cada tarea o prueba. Las columnas \"Puntuación,\" \"Nivel\" y \"Calificación\" se calculan automáticamente, pero las puedes reemplazar si lo deseas. Debido a la forma en que se calculan las calificaciones, la calificación media y la final están incompletas hasta que se indiquen todos los resultados."]
[null,"Si deseas cambiar el área que se imprime, usa el comando \"Área de impresión\" en el menú Diseño de página."]
[null,"La puntuación, el nivel y la calificación no son válidos hasta que se ha completado el 100 % de las pruebas y las tareas. "]
[null,"Escribe cada tarea o prueba y su porcentaje de la calificación total en las celdas G7 a W8."]

{"sheet":"LIBRO DE CALIFICACIONES","index":1,"n_rows":20,"n_cols":23,"rows_kept":20,"merged":[[5,1,5,5],[6,1,6,3],[6,4,6,5],[7,1,8,3],[7,4,7,5],[8,4,8,5],[15,1,15,5],[16,1,16,2],[17,1,17,2],[18,1,18,2],[19,1,19,2]]}
[null,"NOMBRE DEL CENTRO EDUCATIVO"]
[]
[{"$nulls":6},"Puntuación",{"v":0,"d":"0%"},{"v":0.6,"d":"60%"},{"v":0.63,"d":"63%"},{"v":0.67,"d":"67%"},{"v":0.7,"d":"70%"},{"v":0.73,"d":"73%"},{"v":0.77,"d":"77%"},{"v":0.8,"d":"80%"},{"v":0.83,"d":"83%"},{"v":0.87,"d":"87%"},{"v":0.9,"d":"90%"},{"v":0.93,"d":"93%"},{"v":0.97,"d":"97%"}]
[{"$nulls":6},"Nivel","F","D-","D","D+","C-","C","C+","B-","B","B+","A-","A","A+"]
[{"$nulls":6},"Calificación",0,0.67,1,1.33,1.67,2,2.33,2.67,3,3.33,3.67,4,4]
[null,"Nombre del profesor"]
[null,"Clase o el proyecto",null,null,"Nombre de la prueba o la tarea"]
[null,"Año, semestre o trimestre",null,null,"Porcentaje (deben sumar 100 %)"]
[{"$nulls":4},{"$f":"\"Porcentaje total: \"&SUM(G8:W8)*100&\"%\"","v":"Porcentaje total: 0%"}]
[null,"Nombre del estudiante","Id. del estudiante","Puntuación","Nivel","Calificación","Columna6","Columna7","Columna8","Columna9","Columna10","Columna11","Columna12","Columna13","Columna14","Columna15","Columna16","Columna17","Columna18","Columna19","Columna20","Columna21","Columna22"]
[{"$nulls":3},{"$f":"(IF(SUM(Calificaciones[[#This Row],[Columna6]:[Columna22]]),ROUND(SUMPRODUCT($G$8:$W$8,Calificaciones[[#This Row],[Columna6]:[Columna22]]),2),\"\"))","v":""},{"$f":"IF(Calificaciones[[#This Row],[Puntuación]]<>\"\",HLOOKUP(Calificaciones[[#This Row],[Puntuación]],TablaDeCalificaciones,2),\"\")","v":""},{"$f":"IF(Calificaciones[[#This Row],[Puntuación]]<>\"\",HLOOKUP(Calificaciones[[#This Row],[Puntuación]],TablaDeCalificaciones,3),\"\")","v":""}]
[{"$nulls":3},{"$f":"(IF(SUM(Calificaciones[[#This Row],[Columna6]:[Columna22]]),ROUND(SUMPRODUCT($G$8:$W$8,Calificaciones[[#This Row],[Columna6]:[Columna22]]),2),\"\"))","v":""},{"$f":"IF(Calificaciones[[#This Row],[Puntuación]]<>\"\",HLOOKUP(Calificaciones[[#This Row],[Puntuación]],TablaDeCalificaciones,2),\"\")","v":""},{"$f":"IF(Calificaciones[[#This Row],[Puntuación]]<>\"\",HLOOKUP(Calificaciones[[#This Row],[Puntuación]],TablaDeCalificaciones,3),\"\")","v":""}]
[{"$nulls":3},{"$f":"(IF(SUM(Calificaciones[[#This Row],[Columna6]:[Columna22]]),ROUND(SUMPRODUCT($G$8:$W$8,Calificaciones[[#This Row],[Columna6]:[Columna22]]),2),\"\"))","v":""},{"$f":"IF(Calificaciones[[#This Row],[Puntuación]]<>\"\",HLOOKUP(Calificaciones[[#This Row],[Puntuación]],TablaDeCalificaciones,2),\"\")","v":""},{"$f":"IF(Calificaciones[[#This Row],[Puntuación]]<>\"\",HLOOKUP(Calificaciones[[#This Row],[Puntuación]],TablaDeCalificaciones,3),\"\")","v":""}]
[{"$nulls":3},{"$f":"(IF(SUM(Calificaciones[[#This Row],[Columna6]:[Columna22]]),ROUND(SUMPRODUCT($G$8:$W$8,Calificaciones[[#This Row],[Columna6]:[Columna22]]),2),\"\"))","v":""},{"$f":"IF(Calificaciones[[#This Row],[Puntuación]]<>\"\",HLOOKUP(Calificaciones[[#This Row],[Puntuación]],TablaDeCalificaciones,2),\"\")","v":""},{"$f":"IF(Calificaciones[[#This Row],[Puntuación]]<>\"\",HLOOKUP(Calificaciones[[#This Row],[Puntuación]],TablaDeCalificaciones,3),\"\")","v":""}]
[{"$nulls":3},{"$f":"(IF(SUM(Calificaciones[[#This Row],[Columna6]:[Columna22]]),ROUND(SUMPRODUCT($G$8:$W$8,Calificaciones[[#This Row],[Columna6]:[Columna22]]),2),\"\"))","v":""},{"$f":"IF(Calificaciones[[#This Row],[Puntuación]]<>\"\",HLOOKUP(Calificaciones[[#This Row],[Puntuación]],TablaDeCalificaciones,2),\"\")","v":""},{"$f":"IF(Calificaciones[[#This Row],[Puntuación]]<>\"\",HLOOKUP(Calificaciones[[#This Row],[Puntuación]],TablaDeCalificaciones,3),\"\")","v":""}]
[]
[null,"Resumen de la clase",null,"Puntuación","Nivel","Calificación","","","","","","","","","","",""]
[null," Promedio",null,{"$f":"IFERROR(AVERAGE(Calificaciones[[#All],[Puntuación]]),0)","v":{"v":0,"d":"0.0%"}},{"$f":"IFERROR(HLOOKUP(D18,TablaDeCalificaciones,2),\"\")","v":"F"},{"$f":"IFERROR(AVERAGE(Calificaciones[[#All],[Calificación]]),0)","v":0},"","","","","","","","","","","","","","","","",""]
[null," Puntuación más alta",null,{"$f":"IFERROR(MAX(Calificaciones[[#All],[Puntuación]]),0)","v":{"v":0,"d":"0.0%"}},{"$f":"IFERROR(HLOOKUP(D19,TablaDeCalificaciones,2),\"\")","v":"F"},{"$f":"IFERROR(MAX(Calificaciones[[#All],[Calificación]]),0)","v":0},"","","","","","","","","","","","","","","","",""]
[null," Puntuación más baja",null,{"$f":"IFERROR(MIN(Calificaciones[[#All],[Puntuación]]),0)","v":{"v":0,"d":"0.0%"}},{"$f":"IFERROR(HLOOKUP(D20,TablaDeCalificaciones,2),\"\")","v":"F"},{"$f":"IFERROR(MIN(Calificaciones[[#All],[Calificación]]),0)","v":0},"","","","","","","","","","","","","","","","",""]